bitfinex-derivatives/quotes_ETHF0:USTF0_20241104
["timestamp","ask_amount","ask_price","bid_price","bid_amount"]
[1730724911234,41.20419,2476.0,2475.9,0.40419]
[1730724911449,41.20419,2476.0,2475.9,3.76496405]
[1730724911625,5.06790089,2476.4,2476.3,0.40413]
[1730724911825,1.86010089,2476.4,2476.3,2.13189939]
[1730724912024,40.8,2476.4,2476.3,2.90370273]
[1730724912228,40.8,2476.4,2476.3,4.36648449]
[1730724912427,40.8,2476.4,2476.3,4.87183565]
[1730724912627,41.20411,2476.4,2476.3,4.87183565]
[1730724912932,41.20411,2476.4,2476.3,5.77933565]
[1730724913133,41.20411,2476.4,2476.3,4.72068389]
[1730724913434,41.20411,2476.4,2476.3,4.21533273]
[1730724914225,41.20411,2476.4,2476.3,4.21261258]
[1730724915334,40.8,2476.4,2476.3,3.03737571]
[1730724915533,4.66377089,2476.7,2476.3,7.07577571]
[1730724915840,0.40404,2476.9,2476.8,0.40404]
[1730724916031,0.40404,2476.9,2476.8,1.18959622]
[1730724916233,41.20404,2476.9,2476.8,1.18959622]
[1730724916431,40.8,2476.9,2476.8,1.18959622]
[1730724916932,41.20403,2476.9,2476.8,1.18959622]
[1730724917138,41.20403,2476.9,2476.8,1.61399622]
[1730724917337,40.8,2476.9,2476.8,1.61399622]
[1730724918036,40.8,2476.9,2476.8,1.61304383]
[1730724918433,41.20403,2476.9,2476.8,1.61304383]
[1730724919336,41.20403,2476.9,2476.8,1.02637779]
[1730724919538,40.8,2476.9,2476.8,1.02637779]
[1730724920240,40.8,2476.9,2476.8,0.82844]
[1730724921035,41.20403,2476.9,2476.8,1.02598968]
[1730724921234,41.20403,2476.9,2476.8,0.82844]
[1730724921437,40.8,2476.9,2476.8,0.82844]
[1730724922030,41.20403,2476.9,2476.8,0.82844]
[1730724926734,40.8,2476.9,2476.8,0.82844]
[1730724927130,40.8,2476.9,2476.8,4.86604]
[1730724927440,40.8,2476.9,2476.8,6.32201089]
[1730724928031,40.8,2476.9,2476.8,6.51925528]
[1730724928236,40.8,2476.9,2476.8,6.32201089]
[1730724928636,3.61177,2477.3,2477.2,0.40398]
[1730724928836,2.46583089,2477.5,2477.0,1.45597089]
[1730724928837,1.45597089,2477.5,2477.0,1.45597089]
[1730724929139,41.20396,2477.4,2477.3,0.40395]
[1730724930139,40.8,2477.4,2477.2,0.445]
[1730724930440,41.20395,2477.4,2477.3,0.40396]
[1730724932243,41.20395,2477.4,2477.2,0.445]
[1730724932244,0.40396,2477.3,2477.2,0.84897]
[1730724932442,1.85993089,2477.3,2477.2,0.84897]
[1730724932642,0.40402,2477.0,2476.9,0.40401]
[1730724932840,2.46591089,2477.3,2476.9,0.4426]
[1730724932841,1.45597089,2477.3,2476.9,0.4426]
[1730724933039,0.40398,2477.2,2477.1,0.40398]
[1730724933937,1.45597089,2477.3,2476.9,0.4426]
[1730724934137,0.404,2477.1,2477.0,0.40399]
[1730724936544,1.45597089,2477.3,2476.9,0.4426]
[1730724936744,0.40399,2477.2,2477.1,0.40398]
[1730724937345,1.45597089,2477.3,2476.9,0.4426]
[1730724937548,1.45597089,2477.3,2477.0,0.404]
[1730724937549,0.40401,2477.1,2477.0,0.404]
[1730724938036,0.40399,2477.2,2477.1,0.40398]
[1730724939241,1.85994089,2477.3,2477.2,0.40398]
[1730724940845,0.40397,2477.3,2477.2,0.40398]
[1730724941550,42.25597089,2477.4,2477.0,1.01004]
[1730724941746,42.65993089,2477.4,2477.3,0.40396]
[1730724943949,41.20396,2477.4,2477.3,0.40396]
[1730724944145,40.8,2477.4,2477.3,0.86376]
[1730724944849,41.20395,2477.4,2477.3,0.86376]
[1730724945555,40.8,2477.4,2477.3,0.86376]
[1730724947545,41.20395,2477.4,2477.3,0.86376]
[1730724947742,40.8,2477.4,2477.3,0.86376]
[1730724949247,40.8,2477.4,2477.3,1.32776]
[1730724949450,41.20395,2477.4,2477.3,1.32776]
[1730724949748,42.25597089,2477.4,2477.2,0.454]
[1730724949954,1.85993089,2477.3,2477.2,0.454]
[1730724950756,0.40396,2477.3,2477.2,0.85798]
[1730724951451,0.40399,2477.2,2477.1,0.40398]
[1730724951652,0.40398,2477.3,2477.2,0.40397]
[1730724953145,42.65207089,2477.4,2477.1,0.4568]
[1730724953448,0.40398,2477.2,2477.1,0.8608]
[1730724953654,0.40398,2477.2,2477.1,1.64318708]
[1730724954652,42.65207089,2477.4,2477.1,1.23918708]
[1730724954849,0.40398,2477.3,2477.2,0.98918882]
[1730724955145,0.40398,2477.3,2477.2,0.58521882]
[1730724955352,0.40398,2477.3,2477.2,0.78248746]
[1730724955554,0.40398,2477.3,2477.2,1.18646746]
[1730724956059,0.40398,2477.3,2477.2,1.18714667]
[1730724957250,0.40398,2477.3,2477.2,2.12564354]
[1730724957447,0.40398,2477.3,2477.2,1.72166354]
[1730724957652,0.40398,2477.3,2477.2,0.78316667]
[1730724957847,0.86148,2477.3,2477.2,0.78316667]
[1730724958244,0.86148,2477.3,2477.2,1.72196746]
[1730724958553,0.86148,2477.3,2477.2,2.12595183]
[1730724958747,0.86148,2477.3,2477.2,1.72197183]
[1730724958948,0.86148,2477.3,2477.2,0.78316667]
[1730724959154,0.86148,2477.3,2477.2,1.72196447]
[1730724959658,0.86148,2477.3,2477.2,2.12594447]
[1730724959956,0.86148,2477.3,2477.2,1.72196447]
[1730724960860,0.40398,2477.3,2477.2,1.72196447]
[1730724961953,0.40398,2477.2,2477.1,0.86079]
[1730724962158,0.40398,2477.2,2477.1,2.58517883]
[1730724964152,40.8,2477.4,2477.1,3.35547929]
[1730724964462,0.40393,2477.5,2477.4,0.40395]
[1730724964651,0.40393,2477.5,2477.4,2.12833883]
[1730724964856,0.40393,2477.5,2477.4,3.43433883]
[1730724965055,41.20393,2477.5,2477.4,3.43433883]
[1730724965658,40.8,2477.5,2477.4,3.43433883]
[1730724965858,3.2078,2477.9,2477.4,4.89030972]
[1730724966155,0.4039,2477.8,2477.7,0.40389]
[1730724966360,41.2039,2477.8,2477.7,1.18883269]
[1730724966863,45.2399,2477.8,2477.7,1.18883269]
[1730724967255,41.2039,2477.8,2477.7,1.18883269]
[1730724968955,41.2039,2477.8,2477.7,0.60167885]
[1730724969263,42.65987089,2477.8,2477.7,0.78474362]
[1730724969558,47.51477089,2477.8,2477.7,0.78474362]
[1730724971361,47.11897089,2477.8,2477.7,0.78474362]
[1730724971864,42.65987089,2477.8,2477.7,1.18864362]
[1730724972760,42.65987089,2477.8,2477.7,0.4039]
[1730724972956,42.65987089,2477.8,2477.7,0.99129579]
[1730724973156,42.65987089,2477.8,2477.7,2.12899522]
[1730724973363,40.8,2477.8,2477.7,2.12899522]
[1730724973867,40.8,2477.8,2477.7,2.1289975]
[1730724975958,40.8,2477.8,2477.7,3.30353385]
[1730724976460,3.2078,2477.9,2477.7,3.30353385]
[1730724976461,3.2078,2477.9,2477.8,0.40388]
[1730724976767,3.2078,2477.9,2477.8,3.01432478]
[1730724976957,40.8,2477.9,2477.8,7.05032478]
[1730724977657,40.8,2477.9,2477.8,8.22428622]
[1730724977862,40.8,2477.9,2477.8,8.22427473]
[1730724978056,40.8,2477.9,2477.8,12.43465638]
[1730724978266,40.8,2477.9,2477.8,12.93967707]
[1730724978462,40.8,2477.9,2477.8,12.43465638]
[1730724979362,40.8,2477.9,2477.8,11.26070643]
[1730724979867,40.8,2477.9,2477.8,9.53606165]
[1730724980163,40.8,2477.9,2477.8,11.24166179]
[1730724980464,40.8,2477.9,2477.8,12.40160896]
[1730724980868,40.8,2477.9,2477.8,12.9066005]
[1730724981064,40.8,2477.9,2477.8,9.75487061]
[1730724981267,40.8,2477.9,2477.8,9.24987907]
[1730724981475,40.8,2477.9,2477.8,8.0899319]
[1730724982159,40.8,2477.9,2477.8,7.03128014]
[1730724982570,40.8,2477.9,2477.8,8.0899319]
[1730724983362,40.8,2477.9,2477.8,7.03128014]
[1730724984766,40.8,2477.9,2477.8,10.23908014]
[1730724985061,40.8,2477.9,2477.8,8.73114882]
[1730724985672,40.8,2477.9,2477.8,9.30673763]
[1730724987063,40.8,2477.9,2477.8,10.22767973]
[1730724988564,40.8,2477.9,2477.8,5.32568]
[1730724988871,40.8,2477.9,2477.8,8.53348]
[1730724989371,40.8,2477.9,2477.8,5.32568]
[1730724989568,40.8,2477.9,2477.8,8.53348]
[1730724990973,0.40383,2478.2,2478.1,0.40383]
[1730724991572,40.8,2478.2,2477.8,4.49748]
[1730724991766,41.20383,2478.2,2478.1,0.40383]
[1730724993376,41.20383,2478.2,2478.0,0.40384]
[1730724993377,0.40384,2478.1,2478.0,0.40384]
[1730724994673,41.20383,2478.2,2478.1,0.40383]
[1730724997673,0.40383,2478.1,2478.0,0.85474]
[1730724997873,0.40383,2478.1,2478.0,1.05203322]
[1730724998377,0.40383,2478.1,2478.0,0.64819322]
[1730724998878,0.40383,2478.1,2478.0,1.05204322]
[1730725003788,40.8,2478.2,2478.0,0.64819322]
[1730725003986,41.20383,2478.2,2478.1,0.60112322]
[1730725004374,41.20383,2478.2,2478.1,0.601169]
[1730725004784,41.20383,2478.2,2478.1,0.197339]
[1730725004986,0.40383,2478.1,2478.0,0.4509]
[1730725005178,0.40383,2478.1,2478.0,1.62705436]
[1730725005579,0.40383,2478.1,2478.0,1.05208861]
[1730725005777,0.86593,2478.1,2478.0,1.62705737]
[1730725008687,2.32053312,2478.1,2478.0,0.77230737]
[1730725009585,5.95190312,2478.1,2477.8,3.2078]
[1730725009881,1.85847312,2477.9,2477.8,3.2078]
[1730725010088,1.85847312,2477.9,2477.8,3.78677337]
[1730725010283,5.89447312,2477.9,2477.8,3.78677337]
[1730725010581,6.50029312,2477.9,2477.4,1.05865176]
[1730725010787,0.40391,2477.6,2477.5,0.92690899]
[1730725011374,2.85983312,2477.8,2477.4,1.05865176]
[1730725011574,0.40393,2477.5,2477.4,1.05865176]
[1730725011777,0.40393,2477.5,2477.4,1.97872837]
[1730725013879,0.40393,2477.5,2477.4,2.38267837]
[1730725014080,0.40393,2477.5,2477.4,1.97872837]
[1730725015085,0.40393,2477.5,2477.4,1.97879889]
[1730725016490,0.40393,2477.5,2477.4,2.38274889]
[1730725016685,0.40393,2477.5,2477.4,1.97879889]
[1730725018495,0.40393,2477.5,2477.4,1.05865176]
[1730725018682,0.40393,2477.5,2477.4,1.97904823]
[1730725018882,0.40393,2477.5,2477.4,2.38299823]
[1730725019383,0.40393,2477.5,2477.4,3.83760135]
[1730725019581,5.05790312,2477.8,2477.4,3.43365135]
[1730725019783,0.40392,2477.6,2477.5,1.75231647]
[1730725020784,3.6035,2478.1,2477.5,6.83899959]
[1730725020985,42.25460312,2478.2,2477.8,1.45460312]
[1730725021291,0.40385,2478.0,2477.9,1.2977]
[1730725021683,0.40385,2478.0,2477.9,1.8988665]
[1730725022481,0.40385,2478.0,2477.9,2.47391686]
[1730725022989,0.40384,2478.1,2478.0,0.40384]
[1730725023290,0.40384,2478.1,2478.0,1.17618686]
[1730725024091,40.8,2478.3,2478.0,0.77234686]
[1730725024299,41.20381,2478.3,2478.2,0.40382]
[1730725024485,40.8,2478.3,2478.0,1.45460312]
[1730725024686,40.8,2478.3,2478.2,0.64694273]
[1730725024687,41.2038,2478.3,2478.2,0.64694273]
[1730725024990,41.2038,2478.3,2478.2,1.22195231]
[1730725025191,41.2038,2478.3,2478.2,1.62577231]
[1730725025386,41.2038,2478.3,2478.2,1.22195231]
[1730725025593,41.2038,2478.3,2478.2,1.62577231]
[1730725026393,40.8,2478.3,2478.2,3.08037543]
[1730725026587,5.05800312,2478.8,2478.2,9.67054777]
[1730725026787,0.40375,2478.7,2478.6,0.40375]
[1730725026994,0.40375,2478.7,2478.6,0.60100667]
[1730725027189,45.23815,2478.7,2478.6,0.60100667]
[1730725028504,40.8,2478.7,2478.6,0.60100667]
[1730725029999,40.8,2478.7,2478.6,1.16951081]
[1730725030294,40.8,2478.7,2478.6,1.16938419]
[1730725030686,40.8,2478.7,2478.6,2.22592441]
[1730725031101,40.8,2478.7,2478.6,1.16938419]
[1730725031298,3.2078,2478.8,2478.7,0.40373]
[1730725031510,3.2078,2478.8,2478.7,1.16936419]
[1730725031693,44.0078,2478.8,2478.7,0.40373]
[1730725031889,44.0078,2478.8,2478.7,1.16880139]
[1730725032096,44.0078,2478.8,2478.7,0.60063792]
[1730725033991,44.0078,2478.8,2478.7,3.75129446]
[1730725034297,40.8,2478.8,2478.7,8.3533985]
[1730725034503,0.40366,2479.2,2479.1,0.40367]
[1730725034695,0.40367,2479.1,2479.0,0.40367]
[1730725034993,41.20367,2479.1,2479.0,0.40367]
[1730725035197,40.8,2479.1,2478.8,3.2078]
[1730725035403,40.8,2479.1,2478.9,0.1966571]
[1730725035591,41.20368,2479.1,2479.0,0.40369]
[1730725037000,40.8,2479.1,2478.7,7.24365654]
[1730725037197,0.4037,2478.9,2478.8,0.19656795]
[1730725037397,0.40372,2478.8,2478.7,4.093]
[1730725037592,0.40372,2478.8,2478.7,0.4251]
[1730725038297,4.43812,2478.8,2478.7,0.4251]
[1730725038598,0.40372,2478.8,2478.7,0.4251]
[1730725038899,0.40377,2478.5,2478.4,0.84107]
[1730725039092,0.40377,2478.5,2478.4,0.4373]
[1730725039790,0.40377,2478.5,2478.1,3.61163]
[1730725039791,0.40382,2478.2,2478.1,3.61163]
[1730725039997,0.40382,2478.2,2478.1,4.2679563]
[1730725040198,0.40382,2478.2,2478.1,4.2891263]
[1730725040391,0.40382,2478.2,2478.1,1.0813263]
[1730725040597,0.40382,2478.2,2478.1,0.8846]
[1730725041197,0.40387,2477.9,2477.8,3.15065654]
[1730725041508,0.40387,2477.9,2477.8,0.8665]
[1730725041691,0.40387,2477.9,2477.8,0.4489]
[1730725041897,0.4039,2477.7,2477.6,3.2078]
[1730725042702,0.4039,2477.8,2477.6,3.40459444]
[1730725042900,0.4039,2477.7,2477.6,3.2078]
[1730725043204,0.4039,2477.7,2477.6,3.40460007]
[1730725043403,0.4039,2477.7,2477.6,3.61171]
[1730725043905,0.4039,2477.7,2477.6,0.40391]
[1730725044108,0.4039,2477.7,2477.6,3.2078]
[1730725044498,0.4039,2477.7,2477.6,3.61171]
[1730725044804,0.4039,2477.7,2477.6,3.2078]
[1730725045198,0.4039,2477.7,2477.6,3.61171]
[1730725045612,0.40391,2477.6,2477.5,0.8665]
[1730725045798,0.40391,2477.6,2477.5,1.06328113]
[1730725046194,0.40391,2477.6,2477.5,0.19678113]
[1730725046519,6.35845654,2477.9,2477.2,3.6707]
[1730725046703,6.35845654,2477.9,2477.2,3.2078]
[1730725046704,0.40396,2477.3,2477.2,3.2078]
[1730725047004,0.404,2477.1,2477.0,0.4224]
[1730725047206,0.404,2477.1,2477.0,0.6192384]
[1730725047398,0.404,2477.1,2477.0,0.4224]
[1730725047700,41.204,2477.1,2477.0,0.4224]
[1730725048307,40.8,2477.1,2476.9,0.4629]
[1730725048602,0.40401,2477.0,2476.9,0.4629]
[1730725049104,40.8,2477.1,2477.0,0.40401]
[1730725050007,0.40395,2477.4,2477.3,0.40396]
[1730725050303,0.40395,2477.4,2476.9,4.68074]
[1730725050304,0.40395,2477.4,2477.2,0.40396]
[1730725050606,0.40397,2477.3,2477.2,0.40398]
[1730725050806,0.40397,2477.3,2477.1,0.4485]
[1730725051003,0.40397,2477.3,2477.2,0.40397]
[1730725051409,0.40398,2477.2,2477.1,0.85249]
[1730725051607,0.40396,2477.4,2477.2,0.40397]
[1730725051813,0.40396,2477.3,2477.2,0.40397]
[1730725052007,40.8,2477.5,2477.2,0.40397]
[1730725052311,0.40396,2477.4,2477.2,0.40397]
[1730725052908,40.8,2477.5,2477.2,0.40397]
[1730725053103,40.8,2477.5,2477.1,0.4485]
[1730725053308,0.40397,2477.3,2477.2,0.40398]
[1730725053707,0.40396,2477.4,2477.2,0.40398]
[1730725054411,0.40396,2477.4,2477.1,0.4485]
[1730725054412,40.8,2477.5,2477.1,0.4485]
[1730725054613,0.40398,2477.2,2477.1,0.85249]
[1730725055013,0.40397,2477.3,2477.1,0.85249]
[1730725055304,0.40397,2477.3,2477.2,0.40398]
[1730725056314,0.40398,2477.2,2477.1,0.85249]
[1730725057112,0.40398,2477.2,2477.1,0.4485]
[1730725057807,0.40398,2477.2,2477.1,0.8525]
[1730725058005,40.8,2477.5,2477.1,0.4485]
[1730725058211,0.40397,2477.3,2477.2,0.40397]
[1730725058513,40.8,2477.5,2477.1,0.4485]
[1730725058709,0.40398,2477.3,2477.2,0.40397]
[1730725059012,41.80985,2477.5,2477.1,0.85248]
[1730725059206,0.40398,2477.3,2477.1,0.85248]
[1730725059515,41.80985,2477.5,2477.1,0.85248]
[1730725059516,0.40398,2477.2,2477.1,0.85248]
[1730725059812,0.40398,2477.3,2477.2,0.40398]
[1730725061310,40.8,2477.5,2477.1,0.4485]
[1730725061520,0.40398,2477.2,2477.1,0.85249]
[1730725062215,41.80984,2477.5,2477.1,0.4485]
[1730725062216,40.8,2477.5,2477.1,0.4485]
[1730725062420,40.8,2477.5,2477.2,0.40398]
[1730725062421,0.40397,2477.3,2477.2,0.40398]
[1730725064607,40.8,2477.5,2477.1,0.4485]
[1730725064814,41.20394,2477.5,2477.4,0.40395]
[1730725065408,40.8,2477.5,2477.1,1.45849]
[1730725065713,40.8,2477.5,2477.4,0.40395]
[1730725065911,3.15065654,2478.0,2477.2,4.21776]
[1730725066114,3.15065654,2478.0,2477.6,0.40391]
[1730725066115,0.40391,2477.7,2477.6,0.40391]
[1730725066416,41.20391,2477.7,2477.6,0.40391]
[1730725071316,0.40391,2477.6,2477.5,0.4408]
[1730725073918,0.40391,2477.7,2477.6,0.4039]
[1730725074619,40.8,2477.8,2477.5,0.4408]
[1730725074814,41.20389,2477.8,2477.7,0.4039]
[1730725075015,40.8,2477.8,2477.7,0.4039]
[1730725076420,40.8,2477.8,2477.7,4.4399]
[1730725077026,0.40385,2478.1,2477.7,4.4399]
[1730725077228,0.40385,2478.1,2478.0,0.40385]
[1730725077521,41.20385,2478.1,2478.0,0.40385]
[1730725079327,0.40385,2478.0,2477.9,1.30726]
[1730725079925,41.20384,2478.1,2478.0,0.40385]
[1730725080620,0.40385,2478.0,2477.9,1.30726]
[1730725081214,40.8,2478.1,2477.9,1.30726]
[1730725081527,41.20384,2478.1,2478.0,0.40385]
[1730725081716,40.8,2478.1,2478.0,0.40385]
[1730725081917,0.40375,2478.6,2478.5,0.40377]
[1730725082326,41.20375,2478.6,2478.2,1.00954]
[1730725082623,41.20375,2478.6,2478.5,0.40376]
[1730725082819,40.8,2478.6,2478.3,0.8538]
[1730725083018,0.40377,2478.5,2478.4,0.4207]
[1730725083323,40.8,2478.6,2478.3,0.8538]
[1730725083522,0.40378,2478.4,2478.3,0.8538]
[1730725084622,0.40378,2478.4,2478.3,1.2576]
[1730725085724,0.40378,2478.4,2478.3,0.8538]
[1730725086229,0.40378,2478.4,2478.3,1.05064589]
[1730725086425,0.40378,2478.4,2478.3,0.8538]
[1730725086623,0.40378,2478.4,2478.3,0.4187]
[1730725087027,41.8094,2478.6,2478.1,0.4207]
[1730725087227,0.40382,2478.2,2478.1,1.26763]
[1730725087424,0.40382,2478.2,2478.1,2.04245932]
[1730725087622,0.40382,2478.2,2478.1,1.06062726]
[1730725087819,0.40382,2478.2,2478.1,0.8638]
[1730725088922,0.40383,2478.1,2478.0,1.49351445]
[1730725089118,0.40383,2478.1,2478.0,1.89736445]
[1730725089814,0.40383,2478.1,2478.0,0.4391]
[1730725090023,0.40383,2478.1,2478.0,0.84295]
[1730725091121,0.40383,2478.1,2478.0,0.4391]
[1730725091321,0.40385,2478.0,2477.9,3.2078]
[1730725091531,0.40387,2477.9,2477.8,0.40387]
[1730725091822,0.40387,2477.9,2477.8,1.03526203]
[1730725092326,0.40386,2478.0,2477.9,0.40386]
[1730725093029,0.40387,2477.9,2477.8,0.83837]
[1730725096731,0.40379,2478.4,2478.3,0.40378]
[1730725096926,40.8,2478.6,2478.4,0.40377]
[1730725096927,0.40378,2478.5,2478.4,0.40377]
[1730725099240,0.4038,2478.3,2478.2,1.2702]
[1730725099442,0.4038,2478.3,2478.2,2.04818817]
[1730725099735,3.61154,2478.8,2478.7,0.40373]
[1730725100135,40.8,2478.8,2478.7,0.40373]
[1730725100834,40.8,2478.8,2478.7,0.60038828]
[1730725101237,40.8,2478.8,2478.7,1.18118367]
[1730725101432,40.8,2478.8,2478.7,1.18120525]
[1730725102434,40.8,2478.8,2478.7,0.60038828]
[1730725103144,40.8,2478.8,2478.7,1.18085814]
[1730725103343,0.40366,2479.2,2479.1,0.40366]
[1730725103828,44.8336,2479.2,2478.7,1.92134]
[1730725104033,0.40367,2479.1,2479.0,0.40367]
[1730725104937,0.40367,2479.1,2478.7,1.92134]
[1730725104938,3.2078,2479.2,2478.7,1.92134]
[1730725105133,0.4037,2479.0,2478.9,0.4037]
[1730725105337,0.4037,2479.0,2478.7,0.912]
[1730725105338,40.8,2479.1,2478.7,0.912]
[1730725105536,41.20368,2479.1,2478.9,0.40369]
[1730725105838,0.40369,2479.0,2478.9,0.40369]
[1730725106556,0.40371,2478.9,2478.8,0.40371]
[1730725107045,0.40369,2479.0,2478.7,1.31572]
[1730725107241,0.40372,2478.8,2478.7,1.31572]
[1730725107739,0.40371,2478.9,2478.8,0.40371]
[1730725107947,0.40372,2478.8,2478.7,1.31573]
[1730725108331,0.40372,2478.8,2478.7,0.912]
[1730725108835,0.4622,2479.0,2478.7,0.912]
[1730725109133,0.4622,2479.0,2478.8,0.40372]
[1730725109134,0.40371,2478.9,2478.8,0.40372]
[1730725109338,41.20369,2479.1,2478.9,0.4037]
[1730725109542,41.20369,2479.1,2478.7,0.912]
[1730725109543,0.40369,2479.1,2479.0,0.4433]
[1730725109740,3.2078,2479.2,2479.1,0.40367]
[1730725109946,0.40367,2479.1,2479.0,0.84698]
[1730725110246,44.41146,2479.2,2479.1,0.40367]
[1730725110448,0.40367,2479.1,2479.0,0.84698]
[1730725110743,0.40367,2479.1,2479.0,0.84699]
[1730725111346,0.40367,2479.1,2479.0,0.4433]
[1730725111740,0.40367,2479.1,2479.0,0.84699]
[1730725112047,0.40367,2479.1,2479.0,0.4433]
[1730725112848,0.40371,2478.9,2478.8,0.40371]
[1730725113041,0.40371,2478.9,2478.8,0.83561]
[1730725113441,0.4037,2479.0,2478.9,0.4037]
[1730725114343,0.40368,2479.1,2479.0,0.40368]
[1730725114559,44.4311,2479.2,2478.8,0.4319]
[1730725114741,0.40369,2479.0,2478.9,0.40369]
[1730725115142,0.4037,2478.9,2478.8,0.8356]
[1730725116346,0.4037,2479.0,2478.9,0.4037]
[1730725116549,0.4037,2478.9,2478.8,0.83561]
[1730725116737,0.4037,2478.9,2478.8,0.4319]
[1730725117751,0.40372,2478.8,2478.7,0.912]
[1730725118246,0.40372,2478.8,2478.7,1.31573]
[1730725119246,0.40372,2478.9,2478.8,0.40371]
[1730725119446,0.3953,2479.1,2478.7,0.912]
[1730725119649,0.40371,2478.9,2478.8,0.40371]
[1730725120854,0.40372,2478.8,2478.7,1.31572]
[1730725121044,0.40372,2478.8,2478.7,1.51232783]
[1730725122752,0.40372,2478.9,2478.8,0.40371]
[1730725122951,0.40372,2478.8,2478.7,1.31572]
[1730725123148,0.40372,2478.8,2478.7,1.5123759]
[1730725123347,1.00918,2479.1,2478.7,1.1086559]
[1730725123647,0.40372,2478.9,2478.8,0.40371]
[1730725123849,0.40372,2478.8,2478.7,1.31572]
[1730725124048,0.40372,2478.8,2478.7,1.51238462]
[1730725124347,4.0344,2478.8,2478.3,1.05405838]
[1730725124546,0.40378,2478.5,2478.4,1.18152703]
[1730725124753,0.40378,2478.5,2478.4,0.1967339]
[1730725124954,0.40378,2478.5,2478.4,1.18154605]
[1730725125348,0.40378,2478.5,2478.4,0.60053486]
[1730725125850,0.40377,2478.5,2478.4,0.19675879]
[1730725126155,0.40377,2478.5,2478.4,0.60053879]
[1730725126348,0.40377,2478.5,2478.4,0.79731018]
[1730725126548,0.40377,2478.5,2478.4,0.60053879]
[1730725126744,0.40377,2478.5,2478.4,0.79731242]
[1730725127142,0.40377,2478.5,2478.4,0.7973309]
[1730725127347,0.40375,2478.7,2478.6,0.40374]
[1730725127756,1.45926,2478.9,2478.4,0.19675879]
[1730725127948,1.45926,2478.9,2478.6,0.40375]
[1730725128257,0.40374,2478.7,2478.6,0.40375]
[1730725128752,0.40376,2478.6,2478.5,0.40376]
[1730725128951,0.40376,2478.6,2478.5,0.60053708]
[1730725129457,0.40376,2478.6,2478.5,0.40376]
[1730725129662,0.40376,2478.6,2478.5,0.60053513]
[1730725129956,0.40376,2478.6,2478.5,0.60054162]
[1730725130554,0.40376,2478.6,2478.5,0.40376]
[1730725131154,0.40376,2478.6,2478.5,0.60053988]
[1730725131351,0.40376,2478.6,2478.5,0.40376]
[1730725132553,0.40377,2478.5,2478.4,0.60052879]
[1730725132755,0.40377,2478.5,2478.4,0.79729999]
[1730725133052,0.40377,2478.5,2478.4,1.37854073]
[1730725133256,0.40377,2478.5,2478.4,1.37854956]
[1730725133461,4.21712,2478.8,2478.4,0.97477956]
[1730725133654,0.40376,2478.6,2478.5,0.60054003]
[1730725134060,0.40376,2478.6,2478.5,0.40376]
[1730725134362,0.40376,2478.6,2478.5,0.60054108]
[1730725134565,0.40376,2478.6,2478.5,0.6005469]
[1730725134753,0.40376,2478.6,2478.5,0.40376]
[1730725135063,0.40378,2478.5,2478.4,0.40378]
[1730725135253,0.40378,2478.5,2478.4,1.18179803]
[1730725135454,0.40377,2478.6,2478.5,0.40376]
[1730725135755,0.40377,2478.6,2478.5,0.1967869]
[1730725136151,0.40377,2478.6,2478.5,0.40377]
[1730725136363,1.00935,2478.7,2478.5,0.19680291]
[1730725136566,0.40377,2478.5,2478.4,0.40378]
[1730725136861,0.40377,2478.5,2478.4,1.1819917]
[1730725137063,0.40377,2478.5,2478.4,1.18198186]
[1730725137560,0.40377,2478.5,2478.4,1.96025008]
[1730725139361,5.67148013,2478.8,2478.4,1.55647008]
[1730725139556,5.67148013,2478.8,2478.5,1.18201822]
[1730725139557,0.40376,2478.6,2478.5,1.18201822]
[1730725140663,2.46368013,2478.8,2478.5,0.60072941]
[1730725140864,0.40376,2478.6,2478.5,0.40376]
[1730725141061,0.40376,2478.6,2478.5,1.18259189]
[1730725141261,0.40376,2478.6,2478.5,2.11385833]
[1730725141968,0.40376,2478.6,2478.5,1.18260189]
[1730725142166,0.40376,2478.6,2478.5,2.1138814]
[1730725142464,1.85812013,2478.6,2478.5,0.77883189]
[1730725143159,1.88646013,2478.6,2478.5,0.77965426]
[1730725143361,2.29021013,2478.6,2478.5,0.77965426]
[1730725144869,6.32461013,2478.6,2478.5,0.19723092]
[1730725145068,5.92086013,2478.6,2478.3,0.9134]
[1730725145269,1.85813013,2478.5,2478.4,0.77966363]
[1730725145471,9.10033013,2478.5,2478.4,0.77966363]
[1730725145663,0.4038,2478.3,2478.2,1.05405838]
[1730725145865,1.85816013,2478.3,2478.2,1.83724864]
[1730725146063,46.69336013,2478.3,2478.2,1.83724864]
[1730725146269,46.69336013,2478.3,2478.2,1.25130039]
[1730725146661,46.69336013,2478.3,2478.2,1.05405838]
[1730725146864,41.2038,2478.3,2478.2,1.05405838]
[1730725147063,41.2038,2478.3,2478.2,0.19717461]
[1730725147368,0.40383,2478.2,2478.1,0.40382]
[1730725147565,0.40383,2478.2,2478.1,1.18651424]
[1730725149662,0.40383,2478.2,2478.1,1.18647566]
[1730725150371,0.40383,2478.2,2478.1,1.18646622]
[1730725152071,0.40383,2478.2,2478.1,0.78264622]
[1730725152268,0.40383,2478.2,2478.1,0.19706969]
[1730725152469,40.8,2478.3,2478.0,0.40385]
[1730725152470,0.40383,2478.1,2478.0,0.40385]
[1730725152670,0.40383,2478.1,2478.0,1.18962666]
[1730725152971,0.40383,2478.1,2478.0,1.18962655]
[1730725153169,0.425,2478.2,2477.9,0.84685]
[1730725153369,0.40383,2478.1,2478.0,0.4472]
[1730725154069,0.40383,2478.1,2478.0,0.85105]
[1730725154260,0.40383,2478.1,2478.0,0.4472]
[1730725154665,0.40383,2478.1,2478.0,0.64422969]
[1730725155275,0.40383,2478.1,2478.0,0.4472]